[Event "13th KIIT Festival-A 2022"]
[Site "Bhubaneswar"]
[Date "2022.05.26"]
[Round "7.2"]
[White "Paichadze, Luka"]
[Black "Rahman, Ziaur"]
[Result "1/2-1/2"]
[ECO "B53"]
[WhiteElo "2567"]
[BlackElo "2431"]
[Annotator "TA"]
[PlyCount "75"]
[EventDate "2022.05.15"]
[EventType "swiss"]
[EventCountry "IND"]
[SourceTitle "playchess.com"]
[Source "ChessBase"]
[SourceQuality "1"]
[TimeControl "5400+30"]

{[%evp 22,75,24,0,22,22,29,18,29,14,38,30,25,37,35,25,27,32,31,29,45,29,37,20,52,19,29,26,47,41,79,42,47,6,6,-6,0,0,0,-7,0,0,0,0,0,0,0,0,0,0,0,0,0,0,0,0]} 1. e4 {[%emt 0:00:03]} c5 {[%emt 0:00:24]} 2. Nf3 {[%emt 0:00:06]} d6 {[%emt 0:01:07]} 3. d4 {[%emt 0:00:36]} cxd4 {[%emt 0:00:06]} 4. Qxd4 {[%emt 0:00:03]} Nc6 {[%emt 0:00:53]} 5. Bb5 {[%emt 0:00:16]} Bd7 {[%emt 0:00:14]} 6. Qd3 {[%emt 0:00:57]} Nf6 {[%emt 0:01:09]} 7. c4 {[%emt 0:00:34]} g6 {[%emt 0:03:14]} 8. O-O {[%emt 0:00:08]} Bg7 {[%emt 0:00:08]} 9. Nc3 {[%emt 0:00:07]} O-O {[%emt 0:00:16]} 10. h3 {[%emt 0:00:14]} a6 {[%emt 0:03:29]} 11. Bxc6 {[%emt 0:00:13]} Bxc6 {[%emt 0:00:15]} 12. Be3 {[%emt 0:00:52]} Nd7 {[%emt 0:02:58] 12...b5 gains popularity. B53: Sicilian: 2...d6: Lines with Qxd4.} (12... b5 $5) 13. Nd4 $1 {[%emt 0:01:24]} Nc5 {[%emt 0:02:56]} 14. Qc2 {[%emt 0:00:32]} Ne6 {[%emt 0:01:01]} 15. Rfd1 {[%emt 0:03:37] [#]} Nxd4 $146 {[%emt 0:06:25]} ({Predecessor:} 15... Rc8 16. Nxc6 Rxc6 17. Nd5 b5 18. c5 Nxc5 19. b4 Bxa1 20. Rxa1 e6 21. Nf4 Qc7 {½-½ (33) Benz,G (2554)-Koegler,K (2546) ICCF email 2018}) 16. Bxd4 {[%emt 0:00:28]} Qa5 {[%emt 0:01:36]} 17. Bxg7 {[%emt 0:00:42]} Kxg7 {[%emt 0:00:09]} 18. Nd5 {[%emt 0:00:57]} Bxd5 {[%emt 0:01:19]} 19. Rxd5 {[%emt 0:00:13]} Qc7 {[%emt 0:02:46][%cal Ob7b5]} 20. b3 {[%emt 0:04:24]} Rac8 {[%emt 0:03:38][%cal Ob7b5]} 21. a4 {[%emt 0:08:02]} Qb6 {[%emt 0:03:10]} 22. a5 {[%emt 0:05:59]} Qc6 {[%emt 0:06:57]} 23. Qc3+ {[%emt 0:03:19]} f6 {[%emt 0:00:31]} 24. Qe3 {[%emt 0:01:37]} Rc7 {[%emt 0:06:44]} 25. Rad1 {[%emt 0:01:08]} b6 {[%emt 0:07:29]} 26. axb6 {[%emt 0:03:34] White is more active.} Rb7 {[%emt 0:00:07]} 27. R1d3 {[%emt 0:06:41][%cal Oe4e5]} (27. e5 $5 {[%cal Re5d6]} Qxb6 28. Qxb6 (28. exd6 Qxe3 29. fxe3 exd6 $11) 28... Rxb6 29. exd6 $16) 27... Qxb6 {[%emt 0:04:49] The position is equal.} 28. Qg3 {[%emt 0:01:24]} Qb4 {[%emt 0:02:12]} 29. f4 {[%emt 0:02:47]} a5 {[%emt 0:01:55]} 30. e5 {[%emt 0:00:30]} a4 {[%emt 0:01:29]} (30... dxe5 {is interesting.} 31. fxe5 a4 32. bxa4 Qxc4 33. a5 Rb1+) 31. bxa4 {[%emt 0:01:06]} ({Reject} 31. exf6+ Rxf6 32. bxa4 Qxa4 $17) 31... Qxa4 {[%emt 0:02:06]} 32. exd6 {[%emt 0:03:26]} exd6 {[%emt 0:00:06]} 33. Rxd6 {[%emt 0:11:08]} Qxc4 {[%emt 0:02:39]} 34. Kh2 {[%emt 0:01:16]} Re7 {[%emt 0:02:21]} 35. f5 {[%emt 0:02:15]} Qe4 {[%emt 0:01:03]} 36. R6d5 {[%emt 0:04:45]} Rfe8 {[%emt 0:02:33]} 37. R3d4 {[%emt 0:01:43]} Qe3 {[%emt 0:01:37]} 38. Qxe3 {[%emt 0:02:05] Weighted Error Value: White=0.08 (flawless) /Black=0.07 (flawless)} 1/2-1/2

[Event "13th KIIT Festival-A 2022"]
[Site "Bhubaneswar"]
[Date "2022.05.26"]
[Round "7.3"]
[White "Stupak, Kirill"]
[Black "Fedorov, Alexei"]
[Result "1/2-1/2"]
[ECO "E87"]
[WhiteElo "2440"]
[BlackElo "2529"]
[Annotator "TA"]
[PlyCount "25"]
[EventDate "2022.05.15"]
[EventType "swiss"]
[EventCountry "IND"]
[SourceTitle "playchess.com"]
[Source "ChessBase"]
[SourceQuality "1"]
[TimeControl "5400+30"]

{[%evp 23,25,0,98,0]} 1. d4 {[%emt 0:00:01]} Nf6 {[%emt 0:00:05]} 2. c4 {[%emt 0:00:03]} g6 {[%emt 0:00:06]} 3. Nc3 {[%emt 0:00:02]} Bg7 {[%emt 0:00:07]} 4. e4 {[%emt 0:00:04]} d6 {[%emt 0:00:06]} 5. f3 {[%emt 0:00:02]} O-O {[%emt 0:00:07]} 6. Be3 {[%emt 0:00:02]} e5 {[%emt 0:00:06]} 7. d5 {[%emt 0:00:02]} Nh5 {[%emt 0:00:07]} 8. Qd2 {[%emt 0:00:03]} Qh4+ {[%emt 0:00:10]} 9. Bf2 {[%emt 0:00:03]} Qf4 {[%emt 0:00:07]} 10. Be3 {[%emt 0:00:04]} Qh4+ {[%emt 0:00:07]} 11. Bf2 {[%emt 0:00:02]} Qf4 {[%emt 0:00:07]} 12. Be3 {[%emt 0:00:02]} Qh4+ {[%emt 0:00:08] [#]} 13. Bf2 $146 {[%emt 1:36:30] E87: King's Indian: Sämisch: 6...e5 7 d5.} ({White should play} 13. g3 $16 Qe7 14. Nge2) ({Predecessor:} 13. g3 Nxg3 14. Qf2 Nxf1 15. Qxh4 Nxe3 16. Qf2 Nxc4 17. Qe2 Nb6 18. h4 h5 19. O-O-O c6 20. Kb1 Rd8 21. Nh3 cxd5 22. Nxd5 Nc6 23. Nxb6 axb6 24. Ng5 Nd4 25. Rxd4 exd4 26. Qb5 {½-½ (24) Khenkin,I (2624)-Jakubiec,A (2528) Bad Wiessee 2011}) 1/2-1/2

[Event "13th KIIT Festival-A 2022"]
[Site "Bhubaneswar"]
[Date "2022.05.26"]
[Round "7.4"]
[White "Savchenko, Boris"]
[Black "Azaladze, Shota"]
[Result "1-0"]
[ECO "B29"]
[WhiteElo "2524"]
[BlackElo "2420"]
[Annotator "TA"]
[PlyCount "93"]
[EventDate "2022.05.15"]
[EventType "swiss"]
[EventCountry "IND"]
[SourceTitle "playchess.com"]
[Source "ChessBase"]
[SourceQuality "1"]
[TimeControl "5400+30"]

{[%evp 11,93,42,67,32,73,45,62,47,61,55,63,13,55,60,84,76,77,88,106,94,105,72,90,50,48,53,61,41,99,100,100,100,100,100,137,109,129,110,114,114,121,120,119,120,150,166,192,192,192,86,739,748,836,836,836,828,805,805,798,784,751,664,1750,1091,1773,1782,1782,1754,1745,1754,1684,1210,1126,970,1133,1057,978,992,970,915,29982,29983,29990,1035]} 1. e4 {[%emt 0:00:03][%cal Be2e4,Be4e5][%mdl 32]} c5 {[%emt 0:00:05]} 2. Nf3 {[%emt 0:00:08]} Nf6 {[%emt 0:00:14]} 3. e5 {[%emt 0:00:08]} Nd5 {[%emt 0:00:06]} 4. Nc3 {[%emt 0:00:05]} Nxc3 {[%emt 0:00:55]} 5. dxc3 {[%emt 0:00:06]} Nc6 {[%emt 0:00:05]} 6. Bf4 {[%emt 0:01:09]} e6 {[%emt 0:04:19]} 7. h4 {[%emt 0:04:18] B29: Sicilian: 2 Nf3 Nf6 (Nimzowitsch Variation).} Be7 {[%emt 0:00:59]} 8. Bc4 {[%emt 0:01:47] [#]} h6 $146 {[%emt 0:00:19]} ({Predecessor:} 8... b6 9. Rh3 Bb7 10. Rg3 g6 11. Qd2 Bxh4 12. Nxh4 Qxh4 13. O-O-O Qd8 14. Rd3 Bc8 15. Bb5 {1-0 (23) Petrov,V (2087)-Yordanov,G (1750) Sofia 2015}) 9. Qe2 {[%emt 0:00:24] White is slightly better.} b6 {[%emt 0:01:00]} 10. O-O-O {[%emt 0:00:24]} Qc7 {[%emt 0:00:32]} 11. Rd2 {[%emt 0:09:17] 0x0.0024a8888a70dp-1022s more active pieces. The black rooks are badly placed.} ({White should try} 11. Rh3 $14) 11... Bb7 {[%emt 0:01:53]} 12. Rhd1 {[%emt 0:03:03]} O-O-O {[%emt 0:00:25]} 13. Kb1 {[%emt 0:00:20]} Rhg8 {[%emt 0:05:26]} 14. Bg3 {[%emt 0:03:48]} Na5 {[%emt 0:04:04]} 15. Bd3 {[%emt 0:07:37]} Kb8 {[%emt 0:01:06]} 16. h5 {[%emt 0:01:45]} Bc6 {[%emt 0:02:16]} 17. Ba6 {[%emt 0:03:50]} g6 $1 {[%emt 0:07:31]} 18. hxg6 {[%emt 0:06:14]} (18. Bb5 {seems wilder.} Bxb5 19. Qxb5 gxh5 20. Rxd7 h4 21. Nxh4 Rxd7 22. Qxd7 Qxd7 23. Rxd7 Bxh4 24. Bxh4 Rxg2 25. b3) 18... fxg6 {[%emt 0:01:01]} 19. a3 {[%emt 0:01:11]} c4 {[%emt 0:09:01]} ({Black should play} 19... Bb7 $14) 20. Nd4 $1 $16 {[%emt 0:03:13] aiming for Nb5.} Bb7 {[%emt 0:06:04]} 21. Bxb7 {[%emt 0:04:13]} Nxb7 {[%emt 0:02:14]} 22. f4 {[%emt 0:01:20]} a6 {[%emt 0:02:55]} 23. Bf2 {[%emt 0:06:59]} Rgf8 {[%emt 0:01:08]} 24. Qg4 {[%emt 0:03:54]} Nc5 {[%emt 0:01:56]} 25. Qxg6 {[%emt 0:01:44] Hoping for Qh7.} Rxf4 {[%emt 0:00:17]} 26. Be3 {[%emt 0:00:39]} Rff8 {[%emt 0:01:15]} 27. Bxh6 {[%emt 0:03:20]} Rg8 {[%emt 0:01:02]} 28. Qf7 {[%emt 0:05:25]} Bg5 {[%emt 0:07:29]} 29. Bxg5 {[%emt 0:05:48]} Rxg5 {[%emt 0:00:20] [#]} 30. Qe7 {[%emt 0:14:34]} (30. Nxe6 $1 $18 {[%mdl 512] and White stays clearly on top.} Nxe6 31. Rxd7 Rxe5 32. Ka2) 30... Rdg8 $2 {[%emt 0:03:37][%mdl 8192] [#] This move loses the game for Black.} (30... Rgg8 $16) 31. Nxe6 $1 $18 {[%emt 0:04:08][%mdl 512]} dxe6 {[%emt 0:05:34]} (31... Rxe5 32. Qf7) 32. Rd8+ {[%emt 0:00:10]} Kb7 {[%emt 0:00:07] [#]} 33. R8d7 $1 {[%emt 0:00:20][%mdl 512]} Nxd7 {[%emt 0:00:16]} (33... Qxd7 34. Rxd7+) 34. Rxd7 {[%emt 0:00:06]} Qxd7 {[%emt 0:00:08]} 35. Qxd7+ {[%emt 0:00:05][%mdl 4096] Endgame KQ-KRR} Kb8 {[%emt 0:00:06]} 36. Qc6 {[%emt 0:00:13]} Rc8 {[%emt 0:03:31]} 37. Qxb6+ {[%emt 0:00:08]} Ka8 {[%emt 0:00:02]} 38. Qxa6+ {[%emt 0:00:11]} Kb8 {[%emt 0:00:02]} 39. Qb6+ {[%emt 0:00:08]} Ka8 {[%emt 0:00:03]} 40. Qxe6 {[%emt 0:00:08]} Rc7 {[%emt 0:06:52]} 41. g4 {[%emt 0:00:25]} Kb7 {[%emt 0:00:35]} 42. a4 {[%emt 0:00:09][%cal Ba3a4,Ba4a5][%mdl 32]} Rgg7 {[%emt 0:00:56]} 43. a5 {[%emt 0:00:10]} Rc6 {[%emt 0:00:07]} 44. Qd5 {[%emt 0:00:15] Strongly threatening Qb5+.} Kc7 {[%emt 0:00:41]} 45. Ka2 {[%emt 0:03:35]} Rxg4 {[%emt 0:05:02]} 46. e6 {[%emt 0:00:30]} Rg8 {[%emt 0:00:47]} 47. Qd7+ {[%emt 0:00:09] Weighted Error Value: White=0.14 (very precise) /Black=0.19 (very precise)} 1-0

[Event "13th KIIT Festival-A 2022"]
[Site "Bhubaneswar"]
[Date "2022.05.26"]
[Round "7.5"]
[White "Audi Ameya"]
[Black "Mirzoev, Azer"]
[Result "0-1"]
[ECO "C54"]
[WhiteElo "2389"]
[BlackElo "2476"]
[Annotator "TA"]
[PlyCount "164"]
[EventDate "2022.05.15"]
[EventType "swiss"]
[EventCountry "IND"]
[SourceTitle "playchess.com"]
[Source "ChessBase"]
[SourceQuality "1"]
[TimeControl "5400+30"]

{[%evp 12,163,16,14,15,15,15,11,31,11,25,14,16,0,49,23,43,55,45,50,58,50,60,43,52,24,48,22,34,23,80,52,62,43,74,66,66,0,0,0,0,0,33,20,34,29,48,28,38,38,35,35,41,35,38,22,22,24,34,12,25,0,0,0,0,0,21,-18,0,0,0,0,0,0,0,0,0,0,0,0,0,0,0,0,0,0,0,0,0,0,0,0,0,0,0,0,14,22,23,-7,-10,-7,-7,-29,-29,-29,-30,-30,-30,-30,-30,-46,-46,-46,-46,-46,-46,-118,-125,-119,-122,-113,-115,-141,-141,-201,-201,-517,-458,-426,-477,-421,-304,-785,-785,-785,-785,-785,-781,-756,-752,-1578,-1517,-2165,-1987,-3243,-3088,-2416,-2292,-6521,-6319,-2479,-2235,-29999]} 1. e4 {[%emt 0:00:02]} e5 {[%emt 0:00:05]} 2. Nf3 {[%emt 0:00:04]} Nc6 {[%emt 0:00:05]} 3. Bc4 {[%emt 0:00:03]} Bc5 {[%emt 0:00:17]} 4. c3 {[%emt 0:00:05]} Nf6 {[%emt 0:00:12]} 5. d3 {[%emt 0:00:03]} d6 {[%emt 0:00:49]} 6. O-O {[%emt 0:00:06]} Bb6 {[%emt 0:00:29] 6...h6 is setting a new trend.} 7. a4 {[%emt 0:05:17]} h6 {[%emt 0:03:56] C54: Giuoco Piano: 4 c3 Nf6, main lines with 5 d4 and 5 d3.} 8. Re1 {[%emt 0:01:24]} O-O {[%emt 0:01:28]} 9. Nbd2 {[%emt 0:00:34]} a6 {[%emt 0:01:46] The position is equal.} 10. Bb3 {[%emt 0:10:39]} Re8 {[%emt 0:02:25]} 11. h3 {[%emt 0:02:20]} Be6 {[%emt 0:04:35]} 12. Bc2 {[%emt 0:08:28]} Ne7 {[%emt 0:02:57]} (12... a5 $11) 13. d4 {[%emt 0:00:56]} Ng6 {[%emt 0:00:38]} 14. a5 {[%emt 0:00:27]} Ba7 {[%emt 0:00:10]} 15. Nf1 {[%emt 0:00:10]} c6 {[%emt 0:04:02]} 16. Ng3 {[%emt 0:00:53] [#]} Bb8 $146 {[%emt 0:00:14]} ({Predecessor:} 16... Qc7 17. Be3 Rad8 18. Qe2 Qb8 19. Rad1 Bc8 20. b4 b5 21. axb6 Bxb6 22. Bb3 Qc7 {½-½ (55) Popov,I (2609)-Pridorozhni,A (2565) Sochi 2017}) 17. Be3 {[%emt 0:10:54]} Bc7 {[%emt 0:01:21]} 18. Qc1 {[%emt 0:57:05]} (18. b4 {keeps more tension.} Bc4 19. Nf5 d5 20. dxe5 Nxe5 21. Bd4) 18... Qe7 {[%emt 0:20:39]} 19. Ra4 {[%emt 0:00:00]} Rad8 {[%emt 0:12:37]} 20. c4 {[%emt 0:00:00][%cal Bc3c4,Bc4c5][%mdl 32]} Qf8 {[%emt 0:08:38]} (20... exd4 $11 21. Nxd4 Qd7) 21. Bb1 {[%emt 0:00:00]} Rc8 {[%emt 0:02:26]} 22. c5 {[%emt 0:00:00]} exd4 {[%emt 0:06:58]} 23. Bxd4 {[%emt 0:00:00] Strongly threatening cxd6.} Nd7 $1 {[%emt 0:00:43]} 24. Nh5 {[%emt 0:00:00]} (24. cxd6 $14 Bxd6 25. e5) 24... Nge5 $11 {[%emt 0:08:54]} 25. Nxe5 {[%emt 0:00:00]} dxe5 {[%emt 0:00:20]} 26. Be3 {[%emt 0:00:00]} Kh7 {[%emt 0:01:05]} 27. Ra3 {[%emt 0:00:00]} g6 {[%emt 0:01:48]} 28. Ng3 {[%emt 0:00:00][%cal Bh5g3,Bg3f1,Bf1e3][%mdl 32]} Nf6 {[%emt 0:00:59]} 29. Bd2 {[%emt 0:00:00]} Rcd8 {[%emt 0:01:32]} 30. Rf3 {[%emt 0:00:00]} Ng8 {[%emt 0:05:48]} 31. b4 {[%emt 0:00:00]} f6 {[%emt 0:01:15]} 32. Nf1 {[%emt 0:00:00]} Rd7 {[%emt 0:01:28][%cal Bd8d7,Bd7h7,Bh7h4][%mdl 32]} 33. Ne3 {[%emt 0:00:00]} Red8 {[%emt 0:00:30]} 34. Bc3 {[%emt 0:00:00]} h5 {[%emt 0:02:13]} 35. g4 {[%emt 0:00:00]} Qh6 {[%emt 0:00:48]} 36. Kg2 {[%emt 0:00:00]} Kh8 {[%emt 0:00:21][%cal Bh7h8,Bh8g7,Bg7f7,Bf7e7][%mdl 32]} 37. Rh1 {[%emt 0:00:00]} Rh7 {[%emt 0:00:30]} 38. Bc2 {[%emt 0:00:00]} hxg4 {[%emt 0:00:32]} 39. Nxg4 {[%emt 0:00:33]} Qxc1 {[%emt 0:01:03]} 40. Rxc1 {[%emt 0:00:02]} Kg7 {[%emt 0:00:37]} 41. Rd1 {[%emt 0:03:01]} Rxd1 {[%emt 0:00:49]} 42. Bxd1 {[%emt 0:00:01]} Rh4 {[%emt 0:00:25]} 43. Rd3 {[%emt 0:02:22][%cal Od1b3]} Kf7 {[%emt 0:00:50]} 44. Be1 {[%emt 0:01:17]} Rh7 {[%emt 0:00:30]} 45. Bc3 {[%emt 0:01:12]} Ke7 {[%emt 0:00:22]} 46. Rg3 {[%emt 0:00:32]} Rh4 {[%emt 0:01:08]} 47. Bc2 {[%emt 0:01:51]} Kf7 {[%emt 0:00:33]} 48. Rf3 {[%emt 0:02:02]} Ke7 {[%emt 0:00:53]} 49. Kg3 {[%emt 0:00:13]} g5 {[%emt 0:00:40][%cal Of6f5]} 50. Kg2 {[%emt 0:00:51]} Rh8 {[%emt 0:01:20]} 51. Bd3 {[%emt 0:00:29]} Rh4 {[%emt 0:00:21]} 52. Ne3 {[%emt 0:00:46]} Nh6 {[%emt 0:00:45]} 53. Bc2 {[%emt 0:00:30]} Nf7 {[%emt 0:00:29]} 54. Nf5+ {[%emt 0:00:13]} Bxf5 {[%emt 0:00:04]} 55. Rxf5 {[%emt 0:00:02]} Nd8 {[%emt 0:00:10]} 56. Rf3 {[%emt 0:02:18]} Ne6 {[%emt 0:00:06]} 57. Kh2 {[%emt 0:00:23]} Nd4 {[%emt 0:00:18]} 58. Bxd4 {[%emt 0:00:14]} exd4+ {[%emt 0:00:04][%mdl 4096] Endgame KRB-KRB} 59. Kg2 {[%emt 0:00:01]} Bf4 {[%emt 0:00:18]} 60. Rd3 {[%emt 0:00:32] Inhibits Bd2.} Be5 {[%emt 0:00:06]} 61. f3 {[%emt 0:00:54]} Rh8 {[%emt 0:00:11]} 62. Bd1 {[%emt 0:00:13]} Rd8 {[%emt 0:00:08]} 63. Bb3 {[%emt 0:00:27]} Bf4 {[%emt 0:00:15]} 64. Bc2 {[%emt 0:00:37] Black converts the advantage convincingly.} ({White should play} 64. Bc4 $15) 64... Ke6 $17 {[%emt 0:00:19]} 65. Bb3+ {[%emt 0:00:16]} Ke5 {[%emt 0:00:03]} 66. Bf7 {[%emt 0:00:04]} Bc1 $1 {[%emt 0:05:10]} 67. Bh5 {[%emt 0:00:48]} Kf4 {[%emt 0:00:00]} 68. Kf2 {[%emt 0:00:34]} (68. Bg6 $17) 68... Bb2 $1 $19 {[%emt 0:00:00]} 69. Rb3 $2 {[%emt 0:00:12] [#]} (69. Ke2 {is a better chance.}) 69... d3 $1 {[%emt 0:00:00][%cal Bd4d3,Bd3d2][%mdl 32]} 70. Ke1 {[%emt 0:00:01] [#]} Bc1 $1 {[%emt 0:00:00]} 71. Kd1 {[%emt 0:00:17]} Be3 {[%emt 0:00:00]} 72. Bg4 $2 {[%emt 0:02:01]} (72. Bg6 Rd4 73. e5 fxe5 74. Rxd3) 72... Rd4 {[%emt 0:00:59]} 73. Be6 {[%emt 0:01:07]} d2 {[%emt 0:00:34]} 74. Rb1 {[%emt 0:00:22]} Kxf3 {[%emt 0:00:16]} 75. Kc2 {[%emt 0:00:34]} Kxe4 {[%emt 0:00:38]} 76. Kd1 {[%emt 0:00:07]} f5 {[%emt 0:00:26][%cal Bf6f5,Bf5f4][%mdl 32]} 77. Ke2 {[%emt 0:00:05]} f4 {[%emt 0:00:31]} 78. Bg4 {[%emt 0:00:04]} Rc4 {[%emt 0:00:31]} 79. Bf3+ {[%emt 0:00:27]} Kd4 {[%emt 0:00:08] ( -> ...Rc1)} 80. Rb3 {[%emt 0:01:51]} Rc1 {[%emt 0:01:01][%csl Gc1][%cal Rd2d1]} 81. Rd3+ {[%emt 0:00:03]} Kc4 {[%emt 0:00:13][%csl Gd2][%cal Rc1e1]} 82. Rd7 {[%emt 0:00:08]} Re1# {[%emt 0:00:13] Weighted Error Value: White=0.09 (flawless) /Black=0.08 (flawless)} 0-1

[Event "13th KIIT Festival-A 2022"]
[Site "Bhubaneswar"]
[Date "2022.05.26"]
[Round "7.6"]
[White "Eshan Bhattacharjee"]
[Black "Nikitenko, Mihail"]
[Result "0-1"]
[ECO "B17"]
[WhiteElo "1440"]
[BlackElo "2479"]
[Annotator "TA"]
[PlyCount "110"]
[EventDate "2022.05.15"]
[EventType "swiss"]
[EventCountry "IND"]
[SourceTitle "playchess.com"]
[Source "ChessBase"]
[SourceQuality "1"]
[TimeControl "5400+30"]

{[%evp 17,110,8,0,8,20,2,10,1,15,19,16,0,0,0,0,0,0,-7,12,-20,12,10,25,-86,-89,-204,-216,-220,-90,-122,-133,-220,-224,-227,-231,-229,-231,-223,-142,-154,-154,-156,-159,-218,-220,-221,-157,-155,-160,-158,-169,-162,-97,-175,-175,-172,-176,-180,-183,-183,-185,-197,-193,-181,-175,-228,-226,-237,-214,-304,-301,-297,-295,-310,-309,-304,-292,-324,-295,-295,-290,-272,-266,-220,-205,-864,-806,-1062,-1035,-958,-957,-759,-731,-667,-616]} 1. e4 {[%emt 0:01:23]} c6 {[%emt 0:00:07]} 2. Nc3 {[%emt 0:00:03]} d5 {[%emt 0:00:11]} 3. Nf3 {[%emt 0:00:06]} dxe4 {[%emt 0:00:18]} 4. Nxe4 {[%emt 0:00:05]} Nd7 {[%emt 0:00:04]} 5. d4 {[%emt 0:00:14]} Ngf6 {[%emt 0:00:16]} 6. Nxf6+ {[%emt 0:00:15]} Nxf6 {[%emt 0:00:07]} 7. Bd3 {[%emt 0:00:04]} Bg4 {[%emt 0:00:35]} 8. c3 {[%emt 0:00:12]} e6 {[%emt 0:00:08]} 9. h3 {[%emt 0:00:37]} Bh5 {[%emt 0:00:07]} 10. Bf4 {[%emt 0:01:14] B17: Caro-Kann: Modern Line (4...Nd7).} Bd6 {[%emt 0:04:59]} 11. Bxd6 {[%emt 0:01:59]} Qxd6 {[%emt 0:00:09]} 12. Qe2 {[%emt 0:05:08] The position is equal.} O-O-O {[%emt 0:00:20] [#]} 13. g4 $146 {[%emt 0:03:40]} ({Predecessor:} 13. O-O-O Nd5 14. g4 Nf4 15. Qe3 Nxd3+ 16. Qxd3 Bg6 17. Qe2 Qd5 18. Ne5 Qxa2 19. Nxg6 {1-0 (62) Esadze,T (1600)-Zhang,X Al Ain 2013}) 13... Bg6 {[%emt 0:00:18]} 14. Ne5 {[%emt 0:00:09] And now Bxg6 would win.} Bxd3 {[%emt 0:02:04]} 15. Nxd3 {[%emt 0:00:57]} Qd5 {[%emt 0:01:28]} 16. f3 {[%emt 0:01:18]} Nd7 {[%emt 0:01:21]} 17. Qe4 {[%emt 0:06:28]} Qa5 {[%emt 0:00:05]} 18. f4 {[%emt 0:02:54]} Nf6 {[%emt 0:01:14]} 19. Qe5 {[%emt 0:03:05]} Rd5 {[%emt 0:00:38]} (19... Qd5 {seems wilder.} 20. O-O h5 21. g5 Ne4) 20. Qe2 {[%emt 0:00:57]} (20. Qe3 $11 {was the only way to keep the balance.}) 20... Rxd4 $1 $17 {[%emt 0:01:09] Hoping for ...Re4.} 21. b4 {[%emt 0:04:39]} (21. O-O-O $17 Re4 22. Qf3) 21... Qd5 $1 $19 {[%emt 0:00:10][%csl LRd3,LRh1]} 22. O-O-O {[%emt 0:01:10] [#]} Qe4 {[%emt 0:00:54]} (22... Qc4 $1 $19 {Strongly threatening ...Rhd8.} 23. Kb2 Rd5) 23. Qxe4 {[%emt 0:01:06]} Rxe4 {[%emt 0:00:06]} 24. Ne5 {[%emt 0:02:03]} (24. Rhe1 $17) 24... Rf8 {[%emt 0:00:29]} (24... Rxf4 25. Nxf7 Rf8 26. Ng5 $17) 25. Rd4 {[%emt 0:00:49]} Rxd4 {[%emt 0:00:14]} 26. cxd4 {[%emt 0:00:04][%mdl 4096] Endgame KRN-KRN} Nd5 {[%emt 0:00:04][%csl LRb4,LRf4]} 27. Nd3 {[%emt 0:01:33]} Nc3 {[%emt 0:00:07]} 28. Kd2 {[%emt 0:00:54]} Nb5 {[%emt 0:00:05]} ({Don't play} 28... Nxa2 29. Ra1 $16) 29. Ke3 {[%emt 0:00:11]} Rd8 {[%emt 0:00:23]} 30. Ne5 {[%emt 0:00:43]} (30. Rc1 $17 {might work better.}) 30... Nxd4 {[%emt 0:00:34]} (30... Rxd4 31. a4 $11) 31. Nxf7 {[%emt 0:01:07]} Rd7 {[%emt 0:00:30]} 32. Ne5 {[%emt 0:01:38]} Nc2+ {[%emt 0:00:05]} 33. Ke2 {[%emt 0:00:47]} Rd4 {[%emt 0:01:56]} 34. b5 {[%emt 0:01:03]} Nb4 {[%emt 0:02:32]} ({Don't do} 34... cxb5 35. Rc1 $16) (34... Rxf4 $19 {White must now prevent ...Nb4.} 35. bxc6 b6) 35. a3 {[%emt 0:06:44]} (35. bxc6 $17 Rxf4 36. cxb7+ Kxb7 37. Rb1) 35... Rxf4 {[%emt 0:00:23]} 36. axb4 {[%emt 0:01:04] Nd3 is the strong threat. KRN-KR} Re4+ {[%emt 0:00:04]} ({Weaker is} 36... Rxb4 37. Nd3 Rxb5 38. Rf1 $11) 37. Kd3 {[%emt 0:00:11]} Rxe5 {[%emt 0:00:05]} 38. bxc6 {[%emt 0:00:10]} bxc6 {[%emt 0:00:04] KR-KR} 39. Rf1 {[%emt 0:00:11]} a5 {[%emt 0:02:11]} 40. bxa5 {[%emt 0:00:46]} Rxa5 {[%emt 0:01:52]} 41. Kc4 {[%emt 0:00:11] [#]} (41. Rf8+ $142 Kd7 42. Rf7+ Kd6 43. h4) 41... Rd5 $1 {[%emt 0:00:14]} 42. Rf8+ {[%emt 0:03:06]} Kc7 {[%emt 0:00:06]} 43. Rh8 {[%emt 0:00:31]} (43. Rg8 {was worth a try.}) 43... h6 {[%emt 0:00:06]} 44. Rg8 {[%emt 0:00:05]} Rg5 {[%emt 0:00:11]} 45. Kd4 {[%emt 0:00:25]} c5+ {[%emt 0:00:09]} 46. Kc4 {[%emt 0:00:10]} Kd6 {[%emt 0:00:07]} 47. Rd8+ {[%emt 0:00:44]} Ke7 {[%emt 0:00:05]} 48. Rc8 {[%emt 0:00:10]} Kf6 {[%emt 0:00:45]} 49. Rf8+ {[%emt 0:00:35]} Kg6 {[%emt 0:00:05]} 50. Rc8 {[%emt 0:00:32]} Re5 {[%emt 0:00:11]} 51. Rc7 $2 {[%emt 0:00:53]} (51. Kd3) 51... Re3 {[%emt 0:00:23] Black is clearly winning.} 52. Rxc5 {[%emt 0:00:34]} Rxh3 {[%emt 0:00:05]} 53. Re5 {[%emt 0:00:33]} Kf6 {[%emt 0:00:15]} 54. Re4 {[%emt 0:00:16]} e5 {[%emt 0:00:04]} 55. Kd5 {[%emt 0:01:05]} Rd3+ {[%emt 0:00:07] Weighted Error Value: White=0.41/Black=0.12 (very precise)} 0-1